[Event "Torneo Nuevo Centro. Jornada 10"]
[Site "Chess.com"]
[Date "2020.08.21"]
[Round "7"]
[White "Ortiz Benavent, Alba"]
[Black "Gukasov, Artem"]
[Result "0-1"]
[WhiteElo "1204"]
[BlackElo "1459"]
[TimeControl "180+2"]
[EndTime "11:47:31 PDT"]
[Termination "Victoria de ArtemGukasov por jaque mate"]

1. d4 {[%clk 0:03:01.9]} 1... Nf6 {[%clk 0:02:59.8]} 2. Nf3 {[%clk 0:03:02.5]}
2... g6 {[%clk 0:02:55.6]} 3. Bf4 {[%clk 0:03:00.8]} 3... Bg7 {[%clk 0:02:57.5]}
4. e3 {[%clk 0:03:01]} 4... d6 {[%clk 0:02:57.8]} 5. Be2 {[%clk 0:03:01.4]} 5...
Nh5 {[%clk 0:02:56.9]} 6. Bg3 {[%clk 0:03:01]} 6... Nxg3 {[%clk 0:02:57.2]} 7.
hxg3 {[%clk 0:03:01.3]} 7... O-O {[%clk 0:02:55.7]} 8. Ng5 {[%clk 0:02:58.6]}
8... h6 {[%clk 0:02:54.3]} 9. Nf3 {[%clk 0:02:57.1]} 9... e5 {[%clk 0:02:50.5]}
10. c3 {[%clk 0:02:55.5]} 10... f5 {[%clk 0:02:47]} 11. dxe5 {[%clk 0:02:34.1]}
11... dxe5 {[%clk 0:02:46.7]} 12. Na3 {[%clk 0:02:25.1]} 12... e4 {[%clk
0:02:41.5]} 13. Qxd8 {[%clk 0:02:23]} 13... Rxd8 {[%clk 0:02:41.6]} 14. Nd4
{[%clk 0:02:22.5]} 14... Bxd4 {[%clk 0:02:36.3]} 15. cxd4 {[%clk 0:02:16.5]}
15... Kg7 {[%clk 0:02:36.8]} 16. Rc1 {[%clk 0:02:14]} 16... c6 {[%clk
0:02:37.2]} 17. Nc4 {[%clk 0:02:10.2]} 17... Be6 {[%clk 0:02:32.8]} 18. b3
{[%clk 0:02:07.5]} 18... Bxc4 {[%clk 0:02:32.8]} 19. Bxc4 {[%clk 0:02:07.4]}
19... Nd7 {[%clk 0:02:32.2]} 20. Ke2 {[%clk 0:02:01.1]} 20... Nb6 {[%clk
0:02:31.1]} 21. Rc2 {[%clk 0:01:59.4]} 21... Nxc4 {[%clk 0:02:26.7]} 22. Rxc4
{[%clk 0:01:59.2]} 22... h5 {[%clk 0:02:20.9]} 23. Rc5 {[%clk 0:01:55.7]} 23...
Rd6 {[%clk 0:02:17.5]} 24. Re5 {[%clk 0:01:54.5]} 24... Kf6 {[%clk 0:02:14.4]}
25. Rc1 {[%clk 0:01:52.1]} 25... Rad8 {[%clk 0:02:13.2]} 26. a3 {[%clk
0:01:44.4]} 26... Rd5 {[%clk 0:02:11.6]} 27. Rxd5 {[%clk 0:01:45.3]} 27... Rxd5
{[%clk 0:02:10.6]} 28. Rc5 {[%clk 0:01:45.5]} 28... Rxc5 {[%clk 0:02:08.2]} 29.
dxc5 {[%clk 0:01:46.4]} 29... Ke6 {[%clk 0:02:08.5]} 30. Kd2 {[%clk 0:01:44.7]}
30... Kd5 {[%clk 0:02:09.5]} 31. b4 {[%clk 0:01:45.5]} 31... Kc4 {[%clk
0:02:10.6]} 32. Kc2 {[%clk 0:01:39.3]} 32... b6 {[%clk 0:02:03.5]} 33. cxb6
{[%clk 0:01:38.9]} 33... axb6 {[%clk 0:02:04.5]} 34. f3 {[%clk 0:01:34.4]} 34...
g5 {[%clk 0:02:01.6]} 35. f4 {[%clk 0:01:29.7]} 35... gxf4 {[%clk 0:01:54.7]}
36. gxf4 {[%clk 0:01:28.8]} 36... h4 {[%clk 0:01:55.3]} 37. Kb2 {[%clk
0:01:06.6]} 37... Kd3 {[%clk 0:01:53.2]} 38. Kb3 {[%clk 0:01:04.2]} 38... Kxe3
{[%clk 0:01:53.8]} 39. Kc3 {[%clk 0:01:04.8]} 39... Kf2 {[%clk 0:01:54.3]} 40.
Kd4 {[%clk 0:01:02]} 40... e3 {[%clk 0:01:55]} 41. Ke5 {[%clk 0:01:03.5]} 41...
e2 {[%clk 0:01:56.9]} 42. Kxf5 {[%clk 0:01:04.9]} 42... e1=Q {[%clk 0:01:58.8]}
43. Kg5 {[%clk 0:01:06.3]} 43... Kxg2 {[%clk 0:01:59.1]} 44. f5 {[%clk
0:01:07.2]} 44... h3 {[%clk 0:02:00.5]} 45. f6 {[%clk 0:01:07.7]} 45... h2
{[%clk 0:02:01.2]} 46. f7 {[%clk 0:01:08.4]} 46... Qf1 {[%clk 0:02:02.4]} 47.
Kg6 {[%clk 0:01:08.4]} 47... h1=Q {[%clk 0:02:03.4]} 48. Kg7 {[%clk 0:01:09.2]}
48... Qh4 {[%clk 0:02:00.9]} 49. f8=Q {[%clk 0:01:08.3]} 49... Qxf8+ {[%clk
0:01:58.5]} 50. Kxf8 {[%clk 0:01:09]} 50... Qg3 {[%clk 0:01:59]} 51. a4 {[%clk
0:01:08.8]} 51... Qa3 {[%clk 0:02:00]} 52. a5 {[%clk 0:01:08.7]} 52... bxa5
{[%clk 0:02:00.4]} 53. Kf7 {[%clk 0:01:07.2]} 53... Qxb4 {[%clk 0:02:01.5]} 54.
Kg6 {[%clk 0:01:07.7]} 54... a4 {[%clk 0:02:02.2]} 55. Kf5 {[%clk 0:01:07.7]}
55... a3 {[%clk 0:02:04.1]} 56. Kg6 {[%clk 0:01:08.2]} 56... a2 {[%clk 0:02:06]}
57. Kh7 {[%clk 0:01:09.3]} 57... a1=Q {[%clk 0:02:07.9]} 58. Kh6 {[%clk
0:01:09.6]} 58... Qae1 {[%clk 0:02:08.3]} 59. Kh5 {[%clk 0:01:09.6]} 59... Qg3
{[%clk 0:02:07.6]} 60. Kh6 {[%clk 0:01:10]} 60... Qbh4# {[%clk 0:02:09.5]} 0

[Event "Torneo Nuevo Centro. Jornada 10"]
[Site "Chess.com"]
[Date "2020.08.21"]
[Round "7"]
[White "Garrido Silos, Pablo"]
[Black "Ainsa Jimenez, Lucas"]
[Result "0-1"]
[WhiteElo "1440"]
[BlackElo "1171"]
[TimeControl "180+2"]
[EndTime "11:47:34 PDT"]
[Termination "Victoria de ainsaluck por jaque mate"]

1. e4 {[%clk 0:03:01.9]} 1... e5 {[%clk 0:03:00.4]} 2. Nf3 {[%clk 0:03:00.6]}
2... Nc6 {[%clk 0:03:00.6]} 3. Bb5 {[%clk 0:03:01.2]} 3... a6 {[%clk 0:03:00.4]}
4. Bxc6 {[%clk 0:03:01.6]} 4... dxc6 {[%clk 0:03:00.7]} 5. O-O {[%clk
0:03:02.3]} 5... Bg4 {[%clk 0:02:51.4]} 6. h3 {[%clk 0:03:02.6]} 6... Bh5 {[%clk
0:02:49.5]} 7. g4 {[%clk 0:03:02.3]} 7... Bg6 {[%clk 0:02:47.8]} 8. Nxe5 {[%clk
0:03:03.6]} 8... Qe7 {[%clk 0:02:47.9]} 9. Nf3 {[%clk 0:03:03.5]} 9... Bxe4
{[%clk 0:02:47.4]} 10. Re1 {[%clk 0:03:03.6]} 10... O-O-O {[%clk 0:02:42.6]} 11.
Nh2 {[%clk 0:02:42.7]} 11... Nf6 {[%clk 0:02:27.4]} 12. d3 {[%clk 0:02:40.4]}
12... Qd7 {[%clk 0:02:22.8]} 13. Bg5 {[%clk 0:02:04.3]} 13... Bd5 {[%clk
0:02:15.4]} 14. Nc3 {[%clk 0:01:56.4]} 14... h6 {[%clk 0:02:08.7]} 15. Bxf6
{[%clk 0:01:44.3]} 15... gxf6 {[%clk 0:02:07.3]} 16. Nxd5 {[%clk 0:01:44.8]}
16... Qxd5 {[%clk 0:02:04.6]} 17. Qf3 {[%clk 0:01:45.1]} 17... Qd6 {[%clk
0:01:56.1]} 18. Qf5+ {[%clk 0:01:39.1]} 18... Kb8 {[%clk 0:01:53.4]} 19. Re2
{[%clk 0:01:28.4]} 19... Qb4 {[%clk 0:01:42.7]} 20. Qxf6 {[%clk 0:01:23.5]}
20... Bd6 {[%clk 0:01:32.1]} 21. a3 {[%clk 0:01:02.2]} 21... Qc5 {[%clk
0:01:15.2]} 22. b4 {[%clk 0:00:54.7]} 22... Qb6 {[%clk 0:00:56.7]} 23. c4 {[%clk
0:00:53.1]} 23... c5 {[%clk 0:00:48.3]} 24. Rb1 {[%clk 0:00:40.9]} 24... Bxh2+
{[%clk 0:00:45.6]} 25. Kxh2 {[%clk 0:00:37.3]} 25... Qxf6 {[%clk 0:00:45.2]} 26.
bxc5 {[%clk 0:00:34.5]} 26... Qf3 {[%clk 0:00:42.1]} 27. Rbe1 {[%clk 0:00:31.5]}
27... Rxd3 {[%clk 0:00:37.5]} 28. Kg1 {[%clk 0:00:23.5]} 28... Rhd8 {[%clk
0:00:34.5]} 29. h4 {[%clk 0:00:22]} 29... Qxg4+ {[%clk 0:00:33.4]} 30. Kf1
{[%clk 0:00:22.1]} 30... Qh3+ {[%clk 0:00:30.7]} 31. Kg1 {[%clk 0:00:22.7]}
31... Rg8# {[%clk 0:00:32]} 0

[Event "Torneo Nuevo Centro. Jornada 10"]
[Site "Chess.com"]
[Date "2020.08.21"]
[Round "7"]
[White "Ledezma Fortes, Jose Manuel"]
[Black "Marques Montolio, Luis"]
[Result "1-0"]
[WhiteElo "1796"]
[BlackElo "1447"]
[TimeControl "180+2"]
[EndTime "11:47:38 PDT"]
[Termination "Victoria de josema54 por jaque mate"]

1. c4 {[%clk 0:03:01.9]} 1... c6 {[%clk 0:03:00.7]} 2. d4 {[%clk 0:03:02.3]}
2... d5 {[%clk 0:03:02.6]} 3. Bg5 {[%clk 0:03:02]} 3... Bf5 {[%clk 0:02:59.8]}
4. e3 {[%clk 0:03:02]} 4... Qc7 {[%clk 0:03:00.5]} 5. Nd2 {[%clk 0:03:01.5]}
5... e6 {[%clk 0:03:01]} 6. Ne2 {[%clk 0:03:00.8]} 6... Be7 {[%clk 0:03:01.7]}
7. Bf4 {[%clk 0:03:00.3]} 7... Bd6 {[%clk 0:03:01.5]} 8. c5 {[%clk 0:02:57.1]}
8... Bxf4 {[%clk 0:03:01]} 9. Nxf4 {[%clk 0:02:57.8]} 9... Nf6 {[%clk
0:03:01.7]} 10. Be2 {[%clk 0:02:57.6]} 10... O-O {[%clk 0:03:00.7]} 11. O-O
{[%clk 0:02:57.5]} 11... Nbd7 {[%clk 0:03:00.9]} 12. Nf3 {[%clk 0:02:57.8]}
12... b6 {[%clk 0:02:58.4]} 13. b4 {[%clk 0:02:58.1]} 13... a5 {[%clk 0:02:59]}
14. cxb6 {[%clk 0:02:56.8]} 14... Qxb6 {[%clk 0:02:51]} 15. bxa5 {[%clk
0:02:57]} 15... Qxa5 {[%clk 0:02:51.7]} 16. h3 {[%clk 0:02:53.8]} 16... h6
{[%clk 0:02:49.7]} 17. g4 {[%clk 0:02:49.7]} 17... Be4 {[%clk 0:02:49.1]} 18.
Nd2 {[%clk 0:02:50.1]} 18... c5 {[%clk 0:02:41.4]} 19. dxc5 {[%clk 0:02:42.7]}
19... Nxc5 {[%clk 0:02:40.4]} 20. h4 {[%clk 0:02:41]} 20... Bh7 {[%clk
0:02:32.8]} 21. Nb3 {[%clk 0:02:36.3]} 21... Nxb3 {[%clk 0:02:32.6]} 22. axb3
{[%clk 0:02:35.2]} 22... Qxa1 {[%clk 0:02:32.7]} 23. Qxa1 {[%clk 0:02:35.8]}
23... Rxa1 {[%clk 0:02:33.4]} 24. Rxa1 {[%clk 0:02:36.4]} 24... Rb8 {[%clk
0:02:30.9]} 25. Kg2 {[%clk 0:02:31.9]} 25... g5 {[%clk 0:02:29.4]} 26. hxg5
{[%clk 0:02:30.9]} 26... hxg5 {[%clk 0:02:29.4]} 27. Nh3 {[%clk 0:02:31.7]}
27... Rxb3 {[%clk 0:02:22]} 28. Nxg5 {[%clk 0:02:31.6]} 28... Bg6 {[%clk
0:02:19.7]} 29. Ra8+ {[%clk 0:02:28.8]} 29... Kg7 {[%clk 0:02:20.3]} 30. Ra7
{[%clk 0:02:28.8]} 30... Rb4 {[%clk 0:02:16.5]} 31. Nxe6+ {[%clk 0:02:28.5]}
31... Kh7 {[%clk 0:02:15.3]} 32. Nf4 {[%clk 0:02:27.8]} 32... Ne4 {[%clk
0:02:08.6]} 33. Nxd5 {[%clk 0:02:25.9]} 33... Rb5 {[%clk 0:02:02.7]} 34. Nf4
{[%clk 0:02:23.6]} 34... Rg5 {[%clk 0:01:53.1]} 35. f3 {[%clk 0:02:20.2]} 35...
Nc3 {[%clk 0:01:44.4]} 36. Bc4 {[%clk 0:02:19.4]} 36... Re5 {[%clk 0:01:37.7]}
37. e4 {[%clk 0:02:13.9]} 37... Rc5 {[%clk 0:01:30.2]} 38. Bxf7 {[%clk
0:02:13.3]} 38... Bxf7 {[%clk 0:01:29.7]} 39. Rxf7+ {[%clk 0:02:13.4]} 39... Kg8
{[%clk 0:01:29.3]} 40. Rd7 {[%clk 0:02:10.4]} 40... Nb5 {[%clk 0:01:20.7]} 41.
Rd8+ {[%clk 0:02:02]} 41... Kh7 {[%clk 0:01:18.7]} 42. Kg3 {[%clk 0:02:00]}
42... Nc3 {[%clk 0:01:12.8]} 43. Rd7+ {[%clk 0:01:55.4]} 43... Kg8 {[%clk
0:01:05.4]} 44. Nd5 {[%clk 0:01:51.8]} 44... Ne2+ {[%clk 0:01:05.6]} 45. Kf2
{[%clk 0:01:50.6]} 45... Rc2 {[%clk 0:01:02.9]} 46. Ke3 {[%clk 0:01:47.6]} 46...
Ng3 {[%clk 0:01:01]} 47. Nf6+ {[%clk 0:01:45.3]} 47... Kf8 {[%clk 0:00:59.9]}
48. g5 {[%clk 0:01:44.2]} 48... Re2+ {[%clk 0:00:50.7]} 49. Kf4 {[%clk
0:01:43.9]} 49... Nf1 {[%clk 0:00:32.4]} 50. g6 {[%clk 0:01:43.6]} 50... Nd2
{[%clk 0:00:29.2]} 51. g7# {[%clk 0:01:42.6]} 1

[Event "Torneo Nuevo Centro. Jornada 10"]
[Site "Chess.com"]
[Date "2020.08.21"]
[Round "7"]
[White "Gutierrez Marco, Dario"]
[Black "Yatseta Fernandez, Marc Kazymyr"]
[Result "1-0"]
[WhiteElo "1826"]
[BlackElo "1457"]
[TimeControl "180+2"]
[EndTime "11:47:41 PDT"]
[Termination "Victoria de rususs por tiempo"]

1. e4 {[%clk 0:03:01.9]} 1... e5 {[%clk 0:03:00.9]} 2. Nf3 {[%clk 0:03:01.6]}
2... Nc6 {[%clk 0:03:02.2]} 3. Bb5 {[%clk 0:03:02.4]} 3... a6 {[%clk 0:03:02]}
4. Ba4 {[%clk 0:03:03]} 4... d6 {[%clk 0:03:02]} 5. c3 {[%clk 0:03:01.1]} 5...
Bd7 {[%clk 0:02:52.7]} 6. O-O {[%clk 0:03:00.5]} 6... Nf6 {[%clk 0:02:50.7]} 7.
d3 {[%clk 0:02:59]} 7... Be7 {[%clk 0:02:50.2]} 8. Nbd2 {[%clk 0:02:58.1]} 8...
O-O {[%clk 0:02:48.9]} 9. Re1 {[%clk 0:02:57.4]} 9... h6 {[%clk 0:02:36.3]} 10.
Nf1 {[%clk 0:02:56.4]} 10... b5 {[%clk 0:02:21.1]} 11. Bc2 {[%clk 0:02:55.9]}
11... Qc8 {[%clk 0:02:15.9]} 12. Ng3 {[%clk 0:02:53.8]} 12... Nh7 {[%clk
0:02:12.4]} 13. d4 {[%clk 0:02:48.5]} 13... Ng5 {[%clk 0:02:00.9]} 14. Nxg5
{[%clk 0:02:46.8]} 14... Bxg5 {[%clk 0:02:02.8]} 15. Bxg5 {[%clk 0:02:48.1]}
15... hxg5 {[%clk 0:02:04.3]} 16. a4 {[%clk 0:02:41.9]} 16... b4 {[%clk
0:01:58.8]} 17. Qd2 {[%clk 0:02:22.8]} 17... bxc3 {[%clk 0:01:45.2]} 18. bxc3
{[%clk 0:02:24.7]} 18... g4 {[%clk 0:01:45.1]} 19. Nf5 {[%clk 0:02:01.2]} 19...
Bxf5 {[%clk 0:01:41.3]} 20. exf5 {[%clk 0:02:00.1]} 20... exd4 {[%clk
0:01:35.8]} 21. cxd4 {[%clk 0:01:57.5]} 21... Re8 {[%clk 0:01:35.8]} 22. Qf4
{[%clk 0:01:51.9]} 22... Qd8 {[%clk 0:01:13]} 23. Qxg4 {[%clk 0:01:21.5]} 23...
Qf6 {[%clk 0:01:13.5]} 24. Be4 {[%clk 0:01:12]} 24... Qxd4 {[%clk 0:00:53.7]}
25. f6 {[%clk 0:00:54.1]} 25... g6 {[%clk 0:00:39.2]} 26. Rad1 {[%clk
0:00:46.8]} 26... Qc3 {[%clk 0:00:20.5]} 27. Qh4 {[%clk 0:00:38.1]} 27... Nd4
{[%clk 0:00:09.2]} 28. Qh6 {[%clk 0:00:31.6]} 1

[Event "Torneo Nuevo Centro. Jornada 10"]
[Site "Chess.com"]
[Date "2020.08.21"]
[Round "7"]
[White "Perrot, Fabien "]
[Black "Rabbani Perez, Oumaima "]
[Result "1-0"]
[WhiteElo "1114"]
[BlackElo "716"]
[TimeControl "180+2"]
[EndTime "11:47:53 PDT"]
[Termination "Victoria de InspiredMinds por jaque mate"]

1. d4 {[%clk 0:03:01.9]} 1... d6 {[%clk 0:02:51.8]} 2. e4 {[%clk 0:02:53.8]}
2... Nc6 {[%clk 0:02:43.3]} 3. d5 {[%clk 0:02:51.4]} 3... Nb4 {[%clk 0:02:42.8]}
4. c4 {[%clk 0:02:31.2]} 4... f6 {[%clk 0:02:42.3]} 5. Qa4+ {[%clk 0:02:29.7]}
5... c6 {[%clk 0:02:27.5]} 6. Qxb4 {[%clk 0:02:25.7]} 6... c5 {[%clk 0:02:22.4]}
7. Qb3 {[%clk 0:01:49.9]} 7... Nh6 {[%clk 0:02:09.5]} 8. Bxh6 {[%clk 0:01:49.9]}
8... gxh6 {[%clk 0:02:09.7]} 9. Qe3 {[%clk 0:01:49.9]} 9... Rg8 {[%clk
0:02:07.8]} 10. Ne2 {[%clk 0:01:36.4]} 10... Bg4 {[%clk 0:01:58.3]} 11. Ng3
{[%clk 0:01:25.2]} 11... Rg5 {[%clk 0:01:44.1]} 12. Nc3 {[%clk 0:01:12.9]} 12...
Rc8 {[%clk 0:01:34.1]} 13. Be2 {[%clk 0:01:06.7]} 13... Bxe2 {[%clk 0:01:31.3]}
14. Ncxe2 {[%clk 0:01:02.4]} 14... Rb8 {[%clk 0:01:24.7]} 15. Nf4 {[%clk
0:01:02.9]} 15... b5 {[%clk 0:01:20.2]} 16. Ne6 {[%clk 0:00:48.5]} 16... Qa5+
{[%clk 0:01:16]} 17. Qd2 {[%clk 0:00:39.3]} 17... Qxd2+ {[%clk 0:01:13.1]} 18.
Kxd2 {[%clk 0:00:41.2]} 18... Rg4 {[%clk 0:01:10.2]} 19. f3 {[%clk 0:00:40.1]}
19... Rg8 {[%clk 0:01:06.6]} 20. Nc7+ {[%clk 0:00:38.4]} 20... Kd8 {[%clk
0:01:05]} 21. Nxb5 {[%clk 0:00:39.7]} 21... Rb6 {[%clk 0:01:02.5]} 22. Nxa7
{[%clk 0:00:38.4]} 22... Rxb2+ {[%clk 0:00:58.8]} 23. Kc3 {[%clk 0:00:36.5]}
23... Rxg2 {[%clk 0:00:54.8]} 24. Nc6+ {[%clk 0:00:36.6]} 24... Kc8 {[%clk
0:00:53.6]} 25. a4 {[%clk 0:00:37.6]} 25... Rf2 {[%clk 0:00:47.4]} 26. a5 {[%clk
0:00:26.2]} 26... Kb7 {[%clk 0:00:45.7]} 27. a6+ {[%clk 0:00:25.8]} 27... Ka8
{[%clk 0:00:42.5]} 28. Rhf1 {[%clk 0:00:18.3]} 28... Rxh2 {[%clk 0:00:33.4]} 29.
Rab1 {[%clk 0:00:13.8]} 29... Rh3 {[%clk 0:00:29.5]} 30. a7 {[%clk 0:00:13.4]}
30... Rhxg3 {[%clk 0:00:24]} 31. Rb8# {[%clk 0:00:14]} 1

[Event "Torneo Nuevo Centro. Jornada 10"]
[Site "Chess.com"]
[Date "2020.08.21"]
[Round "7"]
[White "Orts Tomás, Marc"]
[Black "Bendayán Claros, Aaron"]
[Result "0-1"]
[WhiteElo "1855"]
[BlackElo "1978"]
[TimeControl "180+2"]
[EndTime "11:47:58 PDT"]
[Termination "Victoria de Cuajada_Zero por jaque mate"]

1. c4 {[%clk 0:03:01.9]} 1... e6 {[%clk 0:03:00]} 2. Nf3 {[%clk 0:02:58.6]} 2...
d5 {[%clk 0:03:01.9]} 3. g3 {[%clk 0:02:59.4]} 3... Nf6 {[%clk 0:03:01.1]} 4.
Bg2 {[%clk 0:03:00.7]} 4... c6 {[%clk 0:03:02.5]} 5. O-O {[%clk 0:03:01.5]} 5...
Bd6 {[%clk 0:03:03.8]} 6. b3 {[%clk 0:03:02.8]} 6... O-O {[%clk 0:03:02.4]} 7.
Bb2 {[%clk 0:03:03.8]} 7... Nbd7 {[%clk 0:03:03.8]} 8. d4 {[%clk 0:03:05]} 8...
Ne4 {[%clk 0:03:04.3]} 9. Nbd2 {[%clk 0:03:04.6]} 9... f5 {[%clk 0:03:05.1]} 10.
Nxe4 {[%clk 0:02:59.1]} 10... fxe4 {[%clk 0:03:07]} 11. Ne5 {[%clk 0:03:00.7]}
11... Nxe5 {[%clk 0:03:07.7]} 12. dxe5 {[%clk 0:03:01.5]} 12... Bc5 {[%clk
0:03:06.8]} 13. a3 {[%clk 0:02:55.7]} 13... Qg5 {[%clk 0:03:07.3]} 14. b4 {[%clk
0:02:55.1]} 14... Bb6 {[%clk 0:03:08.1]} 15. Qc1 {[%clk 0:02:30.8]} 15... Qg6
{[%clk 0:03:05]} 16. Bh3 {[%clk 0:02:11.3]} 16... h5 {[%clk 0:02:58.9]} 17. Kg2
{[%clk 0:02:11.1]} 17... h4 {[%clk 0:02:50.5]} 18. c5 {[%clk 0:02:06.3]} 18...
Bc7 {[%clk 0:02:49]} 19. Bd4 {[%clk 0:02:07.5]} 19... Bd7 {[%clk 0:02:48.7]} 20.
Qe3 {[%clk 0:02:01.5]} 20... Rf7 {[%clk 0:02:43.6]} 21. f3 {[%clk 0:01:56.3]}
21... exf3+ {[%clk 0:02:39.2]} 22. exf3 {[%clk 0:01:53.6]} 22... a5 {[%clk
0:02:14.2]} 23. f4 {[%clk 0:01:44.9]} 23... hxg3 {[%clk 0:02:04.3]} 24. hxg3
{[%clk 0:01:34.4]} 24... Rff8 {[%clk 0:02:04.3]} 25. Bc3 {[%clk 0:01:12.5]}
25... axb4 {[%clk 0:01:59.4]} 26. axb4 {[%clk 0:01:11.5]} 26... Qc2+ {[%clk
0:01:57.7]} 27. Rf2 {[%clk 0:01:01.3]} 27... Qg6 {[%clk 0:01:52.1]} 28. Raa2
{[%clk 0:00:54.6]} 28... Qb1 {[%clk 0:01:50.2]} 29. Rab2 {[%clk 0:00:49.2]}
29... Qg6 {[%clk 0:01:45.5]} 30. Qe2 {[%clk 0:00:36.5]} 30... Ra4 {[%clk
0:01:38.8]} 31. Bg4 {[%clk 0:00:36.3]} 31... Ra3 {[%clk 0:01:35.9]} 32. Bd4
{[%clk 0:00:19.9]} 32... Rfa8 {[%clk 0:01:32.4]} 33. Bf3 {[%clk 0:00:19.7]}
33... Bd8 {[%clk 0:01:28.9]} 34. Rd2 {[%clk 0:00:16.8]} 34... Bh4 {[%clk
0:01:28.4]} 35. Kf1 {[%clk 0:00:09.1]} 35... Qxg3 {[%clk 0:01:25.5]} 36. Rg2
{[%clk 0:00:07.8]} 36... Rxf3+ {[%clk 0:01:25.6]} 37. Kg1 {[%clk 0:00:07.8]}
37... Ra1+ {[%clk 0:01:20.3]} 38. Rd1 {[%clk 0:00:07.7]} 38... Rxd1+ {[%clk
0:01:16.4]} 39. Qxd1 {[%clk 0:00:09.6]} 39... Qxf4 {[%clk 0:01:11.6]} 40. Bc3
{[%clk 0:00:05.3]} 40... Bf2+ {[%clk 0:01:07.9]} 41. Kh1 {[%clk 0:00:05.3]}
41... Rh3+ {[%clk 0:01:08.5]} 42. Rh2 {[%clk 0:00:06.6]} 42... Qxh2# {[%clk
0:01:09.3]} 0

[Event "Torneo Nuevo Centro. Jornada 10"]
[Site "Chess.com"]
[Date "2020.08.21"]
[Round "7"]
[White "Birnoveanu, Petru"]
[Black "Gimenez Saiz, Jose Raul"]
[Result "0-1"]
[WhiteElo "1715"]
[BlackElo "1885"]
[TimeControl "180+2"]
[EndTime "11:48:08 PDT"]
[Termination "Victoria de rango013 por tiempo"]

1. e4 {[%clk 0:02:28.8]} 1... d5 {[%clk 0:02:59.6]} 2. exd5 {[%clk 0:02:28.9]}
2... Nf6 {[%clk 0:03:01]} 3. c4 {[%clk 0:02:28.9]} 3... c6 {[%clk 0:03:00.8]} 4.
dxc6 {[%clk 0:02:29.5]} 4... Nxc6 {[%clk 0:03:02.7]} 5. d3 {[%clk 0:02:27.4]}
5... e5 {[%clk 0:03:03.5]} 6. Be3 {[%clk 0:02:26.4]} 6... Bb4+ {[%clk
0:03:02.7]} 7. Nc3 {[%clk 0:02:25.5]} 7... O-O {[%clk 0:03:02.1]} 8. Ne2 {[%clk
0:02:16.4]} 8... Nd4 {[%clk 0:02:59.2]} 9. a3 {[%clk 0:02:07.6]} 9... Nxe2
{[%clk 0:02:49.6]} 10. axb4 {[%clk 0:02:06.7]} 10... Nxc3 {[%clk 0:02:48.7]} 11.
bxc3 {[%clk 0:02:07.3]} 11... Bf5 {[%clk 0:02:43.6]} 12. f3 {[%clk 0:01:52.2]}
12... a6 {[%clk 0:02:39.7]} 13. d4 {[%clk 0:01:52.9]} 13... exd4 {[%clk
0:02:29.7]} 14. Bxd4 {[%clk 0:01:53.5]} 14... Re8+ {[%clk 0:02:29.6]} 15. Be2
{[%clk 0:01:53.4]} 15... Qe7 {[%clk 0:02:24.3]} 16. Ra2 {[%clk 0:01:51.7]} 16...
Rad8 {[%clk 0:02:18.8]} 17. O-O {[%clk 0:01:47.8]} 17... h6 {[%clk 0:02:12.8]}
18. Qc1 {[%clk 0:01:28.9]} 18... Be6 {[%clk 0:01:56.7]} 19. Qf4 {[%clk
0:01:18.4]} 19... Nh5 {[%clk 0:01:42.1]} 20. Qe5 {[%clk 0:01:09.4]} 20... Nf6
{[%clk 0:01:38]} 21. Bd3 {[%clk 0:00:55.4]} 21... Rc8 {[%clk 0:01:27.6]} 22. Re2
{[%clk 0:00:48.2]} 22... Qc7 {[%clk 0:01:17.8]} 23. Qxc7 {[%clk 0:00:45.7]}
23... Rxc7 {[%clk 0:01:18.7]} 24. Bxf6 {[%clk 0:00:46.3]} 24... gxf6 {[%clk
0:01:19.5]} 25. Rfe1 {[%clk 0:00:44.4]} 25... Kf8 {[%clk 0:01:17.6]} 26. c5
{[%clk 0:00:39.2]} 26... Bd7 {[%clk 0:01:10.2]} 27. Rxe8+ {[%clk 0:00:35.9]}
27... Bxe8 {[%clk 0:01:12.1]} 28. Kf2 {[%clk 0:00:31.5]} 28... Bd7 {[%clk
0:01:05.6]} 29. Ke3 {[%clk 0:00:29.7]} 29... Be6 {[%clk 0:01:05.8]} 30. Rc1
{[%clk 0:00:20.9]} 30... Ke7 {[%clk 0:01:05.7]} 31. f4 {[%clk 0:00:19.1]} 31...
Rc8 {[%clk 0:00:58]} 32. f5 {[%clk 0:00:17.7]} 32... Bd5 {[%clk 0:00:58.4]} 33.
g3 {[%clk 0:00:16]} 33... Bc6 {[%clk 0:00:52]} 34. Be4 {[%clk 0:00:14.4]} 34...
Bxe4 {[%clk 0:00:47.1]} 35. Kxe4 {[%clk 0:00:14.2]} 35... Rd8 {[%clk 0:00:48.8]}
36. Rc2 {[%clk 0:00:11.9]} 36... Rd1 {[%clk 0:00:49.1]} 0

[Event "Torneo Nuevo Centro. Jornada 10"]
[Site "Chess.com"]
[Date "2020.08.21"]
[Round "7"]
[White "Sampedro Roig, Josep Francesc"]
[Black "Carbonell Bofill, Carlos Eloy"]
[Result "0-1"]
[WhiteElo "1822"]
[BlackElo "1914"]
[TimeControl "180+2"]
[EndTime "11:48:10 PDT"]
[Termination "Victoria de MFCARLOS por abandono"]

1. e4 {[%clk 0:03:00.9]} 1... e6 {[%clk 0:03:00.3]} 2. d4 {[%clk 0:03:01.2]}
2... d5 {[%clk 0:03:00.8]} 3. Nd2 {[%clk 0:03:00.9]} 3... Nf6 {[%clk 0:03:01]}
4. e5 {[%clk 0:03:01.8]} 4... Nfd7 {[%clk 0:03:01.7]} 5. f4 {[%clk 0:03:01.7]}
5... c5 {[%clk 0:03:03.1]} 6. c3 {[%clk 0:03:02.5]} 6... cxd4 {[%clk 0:03:01.5]}
7. cxd4 {[%clk 0:03:03.3]} 7... Nc6 {[%clk 0:03:03]} 8. Ndf3 {[%clk 0:03:03.2]}
8... f6 {[%clk 0:02:56]} 9. Ne2 {[%clk 0:02:56.6]} 9... fxe5 {[%clk 0:02:56.1]}
10. fxe5 {[%clk 0:02:57.3]} 10... Bb4+ {[%clk 0:02:44.1]} 11. Bd2 {[%clk
0:02:57.6]} 11... O-O {[%clk 0:02:29.8]} 12. a3 {[%clk 0:02:15.4]} 12... Rxf3
{[%clk 0:01:39.1]} 13. gxf3 {[%clk 0:02:13.8]} 13... Qh4+ {[%clk 0:01:39.7]} 14.
Ng3 {[%clk 0:02:14]} 14... Bxd2+ {[%clk 0:01:39]} 15. Qxd2 {[%clk 0:02:12.4]}
15... Nxd4 {[%clk 0:01:40.4]} 16. Kf2 {[%clk 0:01:25.8]} 16... Nb3 {[%clk
0:01:28.1]} 17. Qd1 {[%clk 0:00:42.6]} 17... Nxa1 {[%clk 0:01:25.1]} 18. Qxa1
{[%clk 0:00:41.6]} 18... Qd4+ {[%clk 0:01:10.6]} 19. Kg2 {[%clk 0:00:37.3]}
19... Nxe5 {[%clk 0:01:01.4]} 20. Bb5 {[%clk 0:00:30.1]} 20... Qd2+ {[%clk
0:00:40.8]} 21. Be2 {[%clk 0:00:30]} 21... Bd7 {[%clk 0:00:38.5]} 22. Rd1 {[%clk
0:00:30.4]} 22... Qg5 {[%clk 0:00:37.8]} 23. b4 {[%clk 0:00:25.8]} 23... Rf8
{[%clk 0:00:37.4]} 24. Qd4 {[%clk 0:00:23.9]} 24... Nc6 {[%clk 0:00:32.5]} 25.
Qc5 {[%clk 0:00:21.4]} 25... b6 {[%clk 0:00:28.6]} 26. Qd6 {[%clk 0:00:21.4]}
26... Qe7 {[%clk 0:00:29.1]} 27. Qc7 {[%clk 0:00:19.2]} 27... Be8 {[%clk
0:00:27.9]} 28. Qc8 {[%clk 0:00:04.5]} 28... h6 {[%clk 0:00:20.9]} 29. Qa6
{[%clk 0:00:06.4]} 29... Ne5 {[%clk 0:00:20.1]} 30. Qd3 {[%clk 0:00:06.2]} 30...
Nxd3 {[%clk 0:00:19.1]} 0